bitfinex/quotes_ETHUSD_20250129
["timestamp","ask_amount","ask_price","bid_price","bid_amount"]
[1738144261403,3.22016011,3136.5,3136.4,0.72588642]
[1738144261752,3.18828,3136.5,3136.4,0.72588642]
[1738144262152,3.22016011,3136.5,3136.4,0.72588642]
[1738144264791,3.18828,3136.5,3136.4,0.72588642]
[1738144265509,3.22016011,3136.5,3136.4,0.72588642]
[1738144266809,4.71731375,3136.5,3136.4,0.17588642]
[1738144267104,0.8303,3136.2,3135.4,0.8046]
[1738144267310,4.01944,3135.7,3135.5,0.55]
[1738144267527,4.01944,3135.7,3135.5,0.17580722]
[1738144267679,3.22106011,3135.6,3135.5,0.17580722]
[1738144267854,3.18918,3135.6,3135.2,0.7849]
[1738144268213,3.18918,3135.6,3134.9,12.09981]
[1738144268214,3.22106011,3135.6,3134.9,12.09981]
[1738144268360,3.18918,3135.6,3135.2,0.55]
[1738144268558,3.18918,3135.6,3135.3,0.1699737]
[1738144268758,3.18918,3135.6,3135.2,0.55]
[1738144269000,3.18918,3135.6,3135.3,0.1699737]
[1738144269310,3.18918,3135.6,3135.2,0.55]
[1738144269602,3.18918,3135.6,3135.5,0.55]
[1738144270101,3.18918,3135.6,3135.5,0.71995353]
[1738144271058,3.22106011,3135.6,3135.5,0.71995353]
[1738144271358,4.72340412,3135.6,3135.5,0.16995353]
[1738144271758,3.18961,3135.2,3134.6,3.97367]
[1738144272195,3.1897,3135.1,3134.8,0.55]
[1738144272393,3.22158011,3135.1,3134.8,0.55]
[1738144272599,3.22158011,3135.1,3135.0,0.55]
[1738144273017,3.22158011,3135.1,3135.0,0.72000396]
[1738144273897,3.1897,3135.1,3135.0,0.72000396]
[1738144274076,3.18958,3135.3,3135.0,0.72000396]
[1738144275065,1.50234401,3135.6,3135.0,1.90500136]
[1738144275066,3.96755,3135.6,3135.0,1.90500136]
[1738144275268,3.18925,3135.6,3135.2,0.55]
[1738144275513,3.18925,3135.6,3135.1,0.55]
[1738144275514,3.22117011,3135.5,3135.1,0.55]
[1738144275798,3.22117011,3135.5,3135.4,0.55]
[1738144276006,6.37852,3135.6,3135.4,0.55]
[1738144276199,3.18925,3135.6,3135.4,0.72120441]
[1738144276403,4.30248511,3135.5,3135.4,0.17120441]
[1738144276604,1.11320511,3135.5,3134.8,0.55]
[1738144276811,3.18958,3135.3,3134.8,0.55]
[1738144277020,3.95172,3135.5,3135.0,0.55]
[1738144277203,0.62235696,3136.1,3135.2,0.55]
[1738144277204,3.1891,3135.7,3135.2,0.55]
[1738144277571,3.1891,3135.7,3135.4,0.55]
[1738144278003,3.1891,3135.7,3135.6,0.55]
[1738144278319,3.1891,3135.7,3135.6,0.72118424]
[1738144279908,0.62235696,3136.1,3135.6,0.72118424]
[1738144280115,3.18863,3136.2,3135.8,0.55]
[1738144280575,3.1887,3136.1,3136.0,0.55]
[1738144281001,3.1887,3136.1,3136.0,0.72114391]
[1738144282703,3.81598433,3136.2,3136.0,0.72114391]
[1738144283017,0.62735433,3136.2,3136.0,0.72114391]
[1738144284587,3.81598433,3136.2,3136.0,0.72114391]
[1738144284790,3.18867,3136.1,3136.0,0.72114391]
[1738144285188,3.18867,3136.1,3136.0,0.17114391]
[1738144285189,4.75099944,3136.1,3136.0,0.17114391]
[1738144285411,0.7888,3136.0,3134.9,0.757]
[1738144285612,3.18951,3135.3,3135.0,0.16511212]
[1738144286289,3.18959,3135.2,3135.0,0.16511212]
[1738144286495,3.18961,3135.2,3135.0,0.16511212]
[1738144286808,3.18961,3135.2,3135.1,0.55]
[1738144287005,3.22146011,3135.2,3135.1,0.15913509]
[1738144287184,3.18983,3135.0,3134.7,0.757]
[1738144287387,3.18983,3135.0,3134.8,0.55]
[1738144287634,3.18983,3135.0,3134.8,0.70916535]
[1738144287995,3.18989,3134.9,3134.8,0.15916535]
[1738144288334,3.19012,3134.7,3134.2,3.19054]
[1738144288516,6.3803,3134.7,3134.2,3.19054]
[1738144288713,3.19021,3134.6,3134.1,0.7815]
[1738144289031,3.19021,3134.6,3134.1,3.97219]
[1738144290132,3.19021,3134.6,3134.2,0.7039157]
[1738144290924,0.81608011,3134.8,3134.2,0.7039157]
[1738144291128,3.19011,3134.7,3134.2,2.06251827]
[1738144292729,3.19011,3134.7,3134.2,5.25310827]
[1738144292931,3.18979,3135.0,3134.4,0.55]
[1738144293105,3.18999,3134.9,3134.4,0.55]
[1738144293427,3.1901,3134.7,3134.2,1.51251827]
[1738144293604,3.1901,3134.7,3134.2,3.19059]
[1738144294005,3.1901,3134.7,3134.4,0.55]
[1738144294391,3.1901,3134.7,3134.6,0.55]
[1738144294810,3.1901,3134.7,3134.6,0.70387533]
[1738144299239,7.17357,3134.9,3134.6,0.70387533]
[1738144299541,3.18998,3134.9,3134.6,0.70387533]
[1738144299841,6.37995,3134.9,3134.6,0.70387533]
[1738144300044,3.18997,3134.9,3134.6,0.70387533]
[1738144300341,3.18999,3134.8,3134.6,0.70387533]
[1738144300836,3.18996,3134.9,3134.6,0.70387533]
[1738144301037,3.19002,3134.8,3134.6,0.70387533]
[1738144301238,3.18975,3135.1,3134.7,0.826]
[1738144301444,6.37954,3135.1,3134.8,0.55]
[1738144301614,6.37954,3135.1,3134.8,0.70453522]
[1738144301817,3.1898,3135.0,3134.8,0.70453522]
[1738144302324,3.18975,3135.1,3134.8,0.70453522]
[1738144302950,3.18981,3135.0,3134.8,0.70453522]
[1738144303722,3.18989,3134.9,3134.8,0.70453522]
[1738144305958,3.18979,3135.0,3134.8,0.70453522]
[1738144306458,3.18989,3134.9,3134.8,0.70453522]
[1738144307760,3.22177011,3134.9,3134.8,0.15453522]
[1738144308123,3.19017,3134.7,3134.3,0.55]
[1738144308321,4.02107,3134.7,3134.3,0.55]
[1738144309365,3.1902,3134.6,3134.2,0.55]
[1738144310262,3.19017,3134.7,3134.2,0.55]
[1738144311121,6.38034,3134.7,3134.2,0.55]
[1738144312370,3.19024,3134.6,3134.2,0.55]
[1738144313072,3.19059,3134.3,3133.8,9.7328]
[1738144313227,3.19071,3134.1,3133.8,0.8228]
[1738144313417,3.19071,3134.1,3133.9,0.55]
[1738144314410,3.19071,3134.1,3133.7,0.55]
[1738144314590,3.19097,3133.9,3133.6,0.8053]
[1738144314793,3.19097,3133.9,3133.6,0.55]
[1738144315195,3.19101,3133.8,3133.4,3.99301]
[1738144315397,3.19101,3133.8,3133.5,0.55]
[1738144317513,3.22289011,3133.8,3133.5,0.55]
[1738144317711,3.19093,3133.9,3133.5,0.55]
[1738144320210,3.19093,3133.9,3133.6,0.15561435]
[1738144320715,0.03188011,3133.8,3133.6,0.15561435]
[1738144321368,4.01191,3133.7,3133.6,0.15561435]
[1738144321607,3.19137,3133.5,3132.9,3.98358]
[1738144321800,3.22332011,3133.4,3132.9,3.98358]
[1738144321967,0.03188011,3133.4,3133.0,0.15567493]
[1738144322167,0.7551,3133.2,3133.0,0.15567493]
[1738144322370,0.78698011,3133.2,3133.0,0.15567493]
[1738144322600,0.78698011,3133.2,3132.7,8.91]
[1738144322601,1.50399212,3133.2,3132.7,8.91]
[1738144322791,3.19193,3132.9,3132.7,8.91]
[1738144324114,3.19193,3132.9,3132.4,3.19237]
[1738144324673,3.19193,3132.9,3132.5,0.55]
[1738144325283,3.1921,3132.8,3132.4,0.55]
[1738144325469,3.22398011,3132.8,3132.4,0.55]
[1738144326570,0.03188011,3132.8,3132.4,0.55]
[1738144326786,3.22391011,3132.8,3132.4,0.55]
[1738144328300,0.7843,3132.7,3132.4,0.55]
[1738144328930,3.97645,3132.7,3132.2,0.55]
[1738144329276,4.00833011,3132.7,3132.2,0.55]
[1738144329604,4.00833011,3132.7,3132.2,3.74263]
[1738144329795,0.81618011,3132.7,3132.2,3.74263]
[1738144330795,0.7843,3132.7,3132.2,0.55]
[1738144331112,0.7843,3132.7,3132.4,0.55]
[1738144332088,0.81618011,3132.7,3132.4,0.55]
[1738144332288,0.81618011,3132.7,3132.2,0.55]
[1738144332524,0.7843,3132.7,3131.9,6.1929]
[1738144332772,0.7626,3132.2,3131.8,3.0]
[1738144333278,0.79448011,3132.2,3131.8,3.0]
[1738144333432,3.98713011,3132.2,3131.9,0.55]
[1738144333932,1.51244712,3132.2,3131.5,12.87499]
[1738144334156,3.9553,3132.2,3131.7,3.19314]
[1738144334354,7.14803,3132.2,3131.8,3.55]
[1738144334527,3.19282,3132.1,3131.7,0.55]
[1738144334956,3.19282,3132.1,3131.8,0.15785013]
[1738144335356,3.9553,3132.2,3131.7,0.55]
[1738144335561,3.9553,3132.2,3131.9,0.15784003]
[1738144335732,0.03188011,3132.1,3131.7,0.55]
[1738144335936,3.19287,3132.0,3131.5,3.19335]
[1738144336880,3.19287,3132.0,3131.6,0.55]
[1738144341746,0.7626,3132.2,3131.6,0.58193266]
[1738144341951,0.7626,3132.2,3131.9,3.74286]
[1738144342664,0.03188011,3132.5,3131.9,3.74286]
[1738144342665,0.82598011,3132.5,3132.1,0.55]
[1738144342852,3.98645,3132.5,3132.0,0.55]
[1738144343646,0.7941,3132.5,3131.9,0.55]
[1738144343847,3.19246,3132.4,3131.9,0.55]
[1738144344062,0.03188011,3132.3,3131.9,0.55]
[1738144344310,3.19275,3132.1,3131.8,0.55]
[1738144344596,0.81068011,3132.0,3131.4,3.19338]
[1738144344810,7.19652011,3132.0,3131.5,0.55]
[1738144344985,7.16464,3132.0,3131.5,0.55]
[1738144345183,0.03188011,3131.9,3131.5,0.55]
[1738144345406,3.97171,3132.0,3131.6,0.55]
[1738144346424,0.7788,3132.0,3131.6,3.74324]
[1738144346578,3.19274,3132.2,3131.6,3.74324]
[1738144346776,3.19274,3132.2,3131.8,0.55]
[1738144347504,3.98084,3132.3,3131.8,0.55]
[1738144347761,0.7883,3132.3,3131.6,3.19325]
[1738144347869,0.7883,3132.3,3131.9,0.55]
[1738144348274,0.03188011,3132.2,3131.8,3.74304]
[1738144348473,0.03188011,3132.2,3131.8,0.55]
[1738144348710,0.7883,3132.3,3132.0,0.55]
[1738144349091,3.98084,3132.3,3132.0,0.55]
[1738144349711,0.7883,3132.3,3132.0,0.55]
[1738144349897,0.7883,3132.3,3132.2,0.55]
[1738144350212,0.7883,3132.3,3132.2,0.7086956]
[1738144350418,3.98084,3132.3,3132.2,0.7086956]
[1738144350720,0.7883,3132.3,3132.2,0.7086956]
[1738144350892,4.01272011,3132.3,3132.2,0.7086956]
[1738144351086,4.73324212,3132.3,3132.2,0.1586956]
[1738144351423,3.1929,3132.0,3131.4,12.10341]
[1738144351641,0.84068011,3131.9,3131.5,0.55]
[1738144352202,4.03364011,3131.9,3131.5,0.55]
[1738144352403,3.19312,3131.8,3131.3,3.95381]
[1738144352605,0.8088,3131.7,3131.0,3.19386]
[1738144352805,3.19356,3131.3,3130.8,0.7603]
[1738144353120,0.84068011,3131.2,3130.6,0.7603]
[1738144353337,3.19399,3130.9,3130.4,3.19442]
[1738144353510,0.03188011,3130.8,3130.4,0.12806537]
[1738144353707,3.22596011,3130.8,3130.3,3.95486]
[1738144354959,3.98341,3130.7,3130.2,0.02013578]
[1738144355260,3.22621011,3130.6,3130.2,0.02013578]
[1738144357681,0.7892,3130.7,3130.2,0.02013578]
[1738144357829,0.7892,3130.7,3130.4,3.19439]
[1738144358030,0.7892,3130.7,3130.5,0.55]
[1738144358873,0.7859,3131.0,3130.7,0.55]
[1738144359155,0.7859,3131.0,3130.5,0.55]
[1738144360177,3.97977,3131.0,3130.5,0.55]
[1738144360478,0.7859,3131.0,3130.5,0.55]
[1738144360779,0.7859,3131.0,3130.5,3.74436]
[1738144363974,0.7859,3131.0,3130.6,3.74426]
[1738144364188,0.7859,3131.0,3130.6,0.55]
[1738144364975,0.7859,3131.0,3130.7,0.14949228]
[1738144370437,0.7859,3131.0,3130.8,0.55]
[1738144370856,0.7859,3131.0,3130.9,0.69946069]
[1738144372594,0.8003,3131.3,3131.0,0.55]
[1738144373097,0.8003,3131.3,3131.1,0.14937794]
[1738144373673,0.16569768,3131.4,3131.2,0.55]
[1738144373887,0.16569768,3131.4,3131.2,0.93930879]
[1738144374213,0.16569768,3131.4,3131.3,0.69935772]
[1738144374925,0.8244,3131.5,3131.4,0.55]
[1738144375081,0.8244,3131.5,3131.4,0.69934761]
[1738144375425,4.01775,3131.5,3131.4,0.69934761]
[1738144376819,0.7995,3131.8,3131.4,0.69934761]
[1738144377129,3.9926,3131.8,3131.4,0.69934761]
[1738144377333,4.15830545,3131.8,3131.5,0.1493375]
[1738144378207,3.19321,3131.7,3131.5,0.1493375]
[1738144378408,0.03188011,3131.6,3131.5,0.6993375]
[1738144378736,3.19321,3131.7,3131.5,0.6993375]
[1738144378887,0.96520545,3131.8,3131.6,0.55]
[1738144379087,0.96520545,3131.8,3131.7,0.14894789]
[1738144379292,0.96520545,3131.8,3131.7,0.69894789]
[1738144381213,4.15825545,3131.8,3131.7,0.69894789]
[1738144382726,4.19013556,3131.8,3131.7,0.69894789]
[1738144383068,4.99386346,3131.8,3131.7,0.14894789]
[1738144383413,3.19327,3131.6,3131.2,0.55]
[1738144383633,0.03188011,3131.5,3131.2,0.55]
[1738144384243,0.7702,3131.3,3130.9,3.94675]
[1738144384397,0.7702,3131.3,3130.9,3.19395]
[1738144384602,0.7702,3131.3,3131.0,0.55]
[1738144385018,3.954,3131.6,3131.0,3.74386]
[1738144385302,3.954,3131.6,3131.0,5.328641]
[1738144386265,7.14734,3131.6,3131.0,5.328641]
[1738144386539,3.954,3131.6,3131.0,5.328641]
[1738144387054,7.17922011,3131.6,3131.0,5.328641]
[1738144387194,7.14734,3131.6,3131.0,3.74386]
[1738144387400,3.19336,3131.5,3131.0,3.74386]
[1738144387847,3.19346,3131.4,3131.0,0.55]
[1738144388082,0.03188011,3131.3,3131.0,0.55]
[1738144388840,3.19387,3131.0,3130.5,3.19437]
[1738144389041,0.03188011,3131.0,3130.5,3.19431]
[1738144389377,4.01177011,3131.5,3131.0,3.19378]
[1738144389502,0.7865,3131.5,3131.1,3.74371]
[1738144389701,0.7865,3131.7,3131.4,0.55]
[1738144390003,0.7865,3131.7,3131.3,0.55]
[1738144390199,0.789,3131.9,3131.6,0.55]
[1738144391010,4.01385011,3131.9,3131.3,3.19349]
[1738144391343,4.01385011,3131.9,3131.4,0.55]
[1738144391527,0.03188011,3131.7,3131.4,0.55]
[1738144391728,4.01385011,3131.9,3131.4,0.55]
[1738144392342,4.01385011,3131.9,3131.4,3.74339]
[1738144392843,3.98197,3131.9,3131.4,3.74339]
[1738144395006,3.98197,3131.9,3131.6,0.55]
[1738144395445,3.98197,3131.9,3131.7,0.69889104]
[1738144395800,7.17499,3131.9,3131.7,0.69889104]
[1738144396446,3.98197,3131.9,3131.7,0.69889104]
[1738144396633,7.17499,3131.9,3131.7,0.69889104]
[1738144397051,3.35875545,3131.8,3131.7,0.69889104]
[1738144397249,3.39063556,3131.8,3131.7,0.69889104]
[1738144397451,4.12789612,3131.8,3131.7,0.69889104]
[1738144398180,4.09601601,3131.8,3131.7,0.69889104]
[1738144398336,0.90296601,3131.8,3131.7,0.69889104]
[1738144398519,3.35875545,3131.8,3131.7,0.69889104]
[1738144400152,0.16570545,3131.8,3131.7,0.69889104]
[1738144400682,0.62614476,3132.3,3131.7,0.69889104]
[1738144400683,0.7951,3132.2,3131.8,0.55]
[1738144400834,3.1926,3132.3,3131.8,0.55]
[1738144401175,3.1926,3132.3,3132.0,0.55]
[1738144401331,0.03188011,3132.2,3132.0,0.55]
[1738144401666,3.19274,3132.1,3131.7,0.55]
[1738144401867,3.3582054,3132.3,3131.7,0.55]
[1738144401868,0.1656054,3132.3,3131.7,3.02815507]
[1738144402172,0.1656054,3132.3,3132.1,3.74272]
[1738144402376,0.1656054,3132.3,3132.1,4.192292]
[1738144402861,0.1656054,3132.3,3132.1,0.999572]
[1738144404080,0.19748551,3132.3,3132.1,0.999572]
[1738144404277,0.19748551,3132.3,3132.0,0.55]
[1738144404767,0.7683,3132.5,3132.1,3.74274]
[1738144404972,0.7932,3132.8,3132.4,3.74241]
[1738144405361,3.19188,3133.0,3132.4,3.74241]
[1738144405670,3.19188,3133.0,3132.4,3.74238]
[1738144406269,3.22376011,3133.0,3132.4,3.74238]
[1738144407442,3.22376011,3133.0,3132.6,0.55]
[1738144407680,3.19188,3133.0,3132.5,0.55]
[1738144408364,0.03188011,3132.9,3132.5,0.55]
[1738144408570,3.19188,3133.0,3132.5,0.55]
[1738144408767,3.19188,3133.0,3132.5,3.74228]
[1738144408991,3.19188,3133.0,3132.5,0.55]
[1738144409199,3.19188,3133.0,3132.5,1.26233355]
[1738144409395,0.7932,3133.1,3132.7,0.55]
[1738144409599,0.03188011,3133.0,3132.7,0.55]
[1738144409784,4.15057911,3133.1,3132.7,0.55]
[1738144409985,4.15057911,3133.1,3132.9,0.55]
[1738144410302,4.15057911,3133.1,3133.0,0.14818592]
[1738144411068,4.18245922,3133.1,3133.0,0.14818592]
[1738144412012,4.15057911,3133.1,3133.0,0.14818592]
[1738144414906,0.95884911,3133.1,3133.0,0.14818592]
[1738144415115,0.16564911,3133.1,3133.0,0.14818592]
[1738144417104,3.35736911,3133.1,3133.0,0.14818592]
[1738144417523,0.16564911,3133.1,3133.0,0.14818592]
[1738144417831,0.16564911,3133.1,3133.0,0.69818592]
[1738144418203,3.19153,3133.3,3133.1,0.55]
[1738144418404,3.99451,3133.5,3133.1,0.55]
[1738144418604,0.8065,3133.7,3133.1,0.93900559]
[1738144418812,3.99723,3134.1,3133.6,0.55]
[1738144419135,3.19082,3134.0,3133.5,0.55]
[1738144419289,3.19082,3134.0,3133.7,0.14743937]
[1738144419497,3.19082,3134.0,3133.6,0.14744947]
[1738144419712,3.19082,3134.0,3133.8,0.14742928]
[1738144419918,3.19082,3134.0,3133.7,0.14743937]
[1738144420123,3.19082,3134.0,3133.9,0.14741918]
[1738144420462,4.16294792,3134.1,3133.9,0.14741918]
[1738144420738,4.16294792,3134.1,3133.5,3.74129]
[1738144420739,3.19087,3134.0,3133.5,3.74129]
[1738144420957,3.19087,3134.0,3133.6,0.374129]
[1738144424067,0.16571792,3134.1,3133.8,0.55]
[1738144424373,0.8011,3134.4,3134.0,0.55]
[1738144424543,3.19036,3134.5,3134.0,3.74075]
[1738144424743,3.9918,3134.7,3134.0,0.55]
[1738144424956,0.8017,3134.7,3134.2,0.55]
[1738144425152,3.99182,3134.7,3134.2,1.3484]
[1738144425355,3.99182,3134.7,3134.4,0.55]
[1738144425556,3.99182,3134.7,3134.5,0.1464904]
[1738144427053,3.86589382,3134.6,3134.5,0.1464904]
[1738144429372,0.67570382,3134.6,3134.5,0.1464904]
[1738144430766,3.86589382,3134.6,3134.5,0.1464904]
[1738144430988,3.83401371,3134.6,3134.5,0.1464904]
[1738144431192,3.86589382,3134.6,3134.5,0.1464904]
[1738144436018,3.19048,3134.4,3134.1,0.55]
[1738144436216,3.19048,3134.4,3134.1,0.93394864]
[1738144440030,3.19048,3134.4,3134.3,0.55]
[1738144440538,3.19095,3133.9,3133.3,8.91]
[1738144440707,3.22289011,3133.8,3133.4,0.8001]
[1738144440908,3.22289011,3133.8,3133.5,0.399162]
[1738144441118,3.19129,3133.6,3133.1,3.99177]
[1738144442232,3.19129,3133.6,3133.2,3.0]
[1738144443014,3.19129,3133.6,3133.3,0.55]
[1738144443919,0.8209,3133.7,3133.3,0.55]
[1738144445245,4.01201,3133.7,3133.3,0.55]
[1738144445536,4.04391011,3133.7,3133.3,0.55]
[1738144446261,3.19148,3133.4,3133.2,0.55]
[1738144446413,3.22340011,3133.3,3132.7,7.20478]
[1738144446614,0.03188011,3133.3,3132.8,3.74202]
[1738144446867,3.19132,3133.5,3133.0,0.55]
[1738144447017,3.22320011,3133.5,3133.0,0.55]
[1738144447418,0.7927,3134.0,3133.2,0.55]
[1738144447652,3.22287011,3133.9,3133.4,0.55]
[1738144447967,3.19162,3133.2,3132.8,0.7667]
[1738144448130,0.82458011,3133.1,3132.6,3.9589]
[1738144448316,0.82458011,3133.1,3132.7,0.55]
[1738144448514,3.98418,3133.4,3132.8,3.19196]
[1738144448740,3.98418,3133.4,3132.9,0.55]
[1738144448941,0.03188011,3133.3,3132.9,0.55]
[1738144449141,7.17567,3133.4,3132.9,0.55]
[1738144449662,0.03188011,3133.3,3132.9,0.55]
[1738144449882,7.17567,3133.4,3132.9,0.55]
[1738144450732,3.98418,3133.4,3133.0,0.55]
[1738144450932,3.19113,3133.7,3133.2,0.55]
[1738144451569,6.38234,3133.7,3133.2,0.55]
[1738144451751,3.19113,3133.7,3133.2,0.55]
[1738144452075,0.03188011,3133.6,3133.2,0.55]
[1738144452286,0.75071812,3133.6,3132.9,0.8287]
[1738144452448,3.19149,3133.4,3132.9,4.02062]
[1738144452635,3.22337011,3133.4,3133.0,0.55]
[1738144452835,3.19149,3133.4,3133.0,0.55]
[1738144453038,0.7742,3133.8,3133.0,0.55]
[1738144453039,3.19132,3133.5,3133.0,0.55]
[1738144453287,6.38272,3133.5,3133.0,0.55]
[1738144453453,3.19132,3133.5,3133.0,0.55]
[1738144454582,6.38273,3133.5,3133.0,0.55]
[1738144454979,3.19132,3133.5,3133.1,0.14103443]
[1738144455277,3.19142,3133.4,3133.2,0.55]
[1738144455580,3.22330011,3133.4,3133.3,0.14101423]
[1738144455779,3.19132,3133.5,3133.3,0.14101423]
[1738144455982,3.19132,3133.5,3133.2,0.55]
[1738144456281,6.38237,3133.7,3133.3,0.6910199]
[1738144457082,3.19138,3133.5,3133.3,0.1410199]
[1738144457288,3.19142,3133.4,3133.3,0.1410199]
[1738144457467,3.19142,3133.4,3133.0,0.55]
[1738144457650,3.19142,3133.4,3133.3,0.14095181]
[1738144457987,3.19142,3133.4,3133.0,0.55]
[1738144458448,3.19142,3133.4,3133.1,0.14097201]
[1738144459691,3.19138,3133.5,3133.1,0.14097201]
[1738144460886,3.19143,3133.4,3133.1,0.14097201]
[1738144461441,3.95872,3133.3,3133.1,0.14097201]
[1738144461638,3.95872,3133.3,3133.2,0.55]
[1738144461872,3.95872,3133.3,3133.2,0.69100163]
[1738144462363,3.95872,3133.3,3133.2,0.14100163]
[1738144462771,3.19178,3133.1,3132.8,0.55]
[1738144463139,3.22366011,3133.1,3132.8,0.55]
[1738144463489,3.19178,3133.1,3132.8,0.55]
[1738144463654,3.22366011,3133.1,3132.8,0.55]
[1738144464907,3.22380011,3133.0,3132.7,0.55]
[1738144465112,3.19192,3133.0,3132.5,3.21232]
[1738144465264,3.19192,3133.0,3132.7,0.55]
[1738144465767,3.19178,3133.1,3132.7,0.55]
[1738144466492,3.19157,3133.3,3132.9,0.55]
[1738144466706,0.7926,3133.6,3133.1,3.19166]
[1738144466873,0.7926,3133.6,3133.2,0.55]
[1738144467078,3.9839,3133.6,3133.2,0.55]
[1738144467316,3.9839,3133.6,3133.1,0.55]
[1738144467472,3.1913,3133.6,3133.1,4.11904462]
[1738144467870,6.38235,3133.7,3133.3,0.55]
[1738144468163,3.98444,3133.8,3133.3,3.74152]
[1738144468565,3.19115,3133.7,3133.3,0.55]
[1738144468802,3.98444,3133.8,3133.3,0.55]
[1738144469006,3.19133,3133.5,3133.3,0.55]
[1738144469362,3.19126,3133.6,3133.3,0.55]
[1738144470164,3.19131,3133.5,3133.4,0.1408339]
[1738144471130,3.19131,3133.5,3133.4,0.6908339]
[1738144471410,3.19131,3133.5,3133.4,0.1408339]
[1738144471584,3.19131,3133.5,3133.1,0.55]
[1738144471766,3.19131,3133.5,3133.2,0.374182]
[1738144471968,3.19131,3133.5,3133.2,0.51510986]
[1738144473184,3.19121,3133.6,3133.2,0.51510986]
[1738144473819,0.7934,3133.8,3133.2,0.51510986]
[1738144473820,3.19102,3133.8,3133.5,0.8092]
[1738144474169,3.19102,3133.8,3133.6,0.14077965]
[1738144474574,3.19111,3133.7,3133.6,0.14077965]
[1738144474774,6.38209,3133.8,3133.6,0.14077965]
[1738144474988,3.19102,3133.8,3133.6,0.14077965]
[1738144475190,6.38211,3133.8,3133.6,0.14077965]
[1738144475421,3.19102,3133.8,3133.6,0.14077965]
[1738144477405,6.3821,3133.8,3133.6,0.14077965]
[1738144478289,3.19102,3133.8,3133.6,0.14077965]
[1738144480931,3.35664793,3133.9,3133.7,0.55]
[1738144481232,3.35664793,3133.9,3133.8,0.14066867]
[1738144481607,3.35664793,3133.9,3133.8,0.14060627]
[1738144481804,3.35664793,3133.9,3133.6,0.55]
[1738144482320,3.35664793,3133.9,3133.7,0.14061636]
[1738144482935,0.16572793,3133.9,3133.7,0.14061636]
[1738144483249,3.97085,3134.1,3133.8,0.55]
[1738144483612,3.97085,3134.1,3133.9,0.14057915]
[1738144484170,3.35667402,3134.2,3133.9,0.14057915]
[1738144485146,6.54735402,3134.2,3133.9,0.14057915]
[1738144485443,0.16599402,3134.2,3134.0,0.55]
[1738144485869,3.1905,3134.3,3134.1,0.14021857]
[1738144486229,3.1905,3134.3,3134.0,0.55]
[1738144486466,3.1905,3134.3,3134.1,0.14021857]
[1738144486769,3.1905,3134.3,3134.0,0.55]
[1738144487074,3.1905,3134.3,3134.1,0.14021857]
[1738144487280,6.38107,3134.3,3134.1,0.14021857]
[1738144487483,6.38107,3134.3,3134.0,0.55]
[1738144487789,3.1905,3134.3,3134.2,0.14020848]
[1738144487977,3.1905,3134.3,3134.1,0.13841703]
[1738144488177,3.1905,3134.3,3134.2,0.13840694]
[1738144488892,3.1905,3134.3,3134.0,0.55]
[1738144489096,6.38107,3134.3,3134.2,0.13840694]
[1738144489266,6.38107,3134.3,3134.0,0.55]
[1738144489590,3.1905,3134.3,3134.1,0.13841703]
[1738144489997,3.1905,3134.3,3134.0,0.55]
[1738144490200,6.38108,3134.3,3134.2,0.13840694]
[1738144490362,3.1905,3134.3,3134.1,0.13841703]
[1738144490557,3.1905,3134.3,3134.0,0.55]
[1738144490870,3.1905,3134.3,3134.1,0.13841703]
[1738144491071,3.1905,3134.3,3134.0,0.55]
[1738144491285,3.1905,3134.3,3134.1,0.13841703]
[1738144491482,3.1905,3134.3,3134.0,0.55]
[1738144491888,3.1905,3134.3,3134.1,0.13841703]
[1738144492386,3.99663,3134.4,3134.0,0.55]
[1738144492587,3.99663,3134.4,3134.3,0.55]
[1738144492990,3.99663,3134.4,3134.3,0.68839685]
[1738144493303,4.02851011,3134.4,3134.3,0.68839685]
[1738144495266,3.99663,3134.4,3134.3,0.68839685]
[1738144499706,3.19035,3134.5,3134.3,0.68839685]
[1738144499908,3.1904,3134.4,3134.3,0.68839685]
[1738144502899,4.67445511,3134.4,3134.3,0.13839685]
[1738144503304,4.67445511,3134.4,3133.5,0.55]
[1738144503611,3.19097,3133.9,3133.4,3.8246]
[1738144503816,3.19097,3133.9,3133.6,0.1381045]
[1738144504018,3.19095,3133.9,3133.6,0.55]
[1738144504175,3.19095,3133.9,3133.7,0.1380944]
[1738144504576,3.19095,3133.9,3133.5,0.55]
[1738144504779,3.19095,3133.9,3133.8,0.13808431]
[1738144505026,3.19095,3133.9,3133.5,0.55]
[1738144505206,3.19095,3133.9,3133.8,0.13808431]
[1738144505407,3.19095,3133.9,3133.5,0.55]
[1738144505584,3.19095,3133.9,3133.8,0.13808431]
[1738144505786,3.19095,3133.9,3133.5,0.55]
[1738144506099,3.19095,3133.9,3133.5,1.625739]
[1738144506295,3.19095,3133.9,3133.6,0.1381045]
[1738144507531,3.19102,3133.8,3133.6,0.1381045]
[1738144507709,3.19095,3133.9,3133.6,0.1381045]
[1738144509930,0.7625,3134.0,3133.6,0.1381045]
[1738144510143,3.19082,3134.0,3133.7,0.55]
[1738144510585,3.19076,3134.1,3133.9,0.55]
[1738144510786,7.20182,3134.3,3133.9,0.55]
[1738144510989,7.20182,3134.3,3134.0,0.13806412]
[1738144511535,4.01123,3134.3,3134.0,0.13806412]
[1738144511733,3.19061,3134.2,3134.0,0.13806412]
[1738144512326,3.19053,3134.3,3134.0,0.13806412]
[1738144512526,0.97469769,3134.4,3134.1,0.55]
[1738144512740,0.97469769,3134.4,3134.1,0.68838302]
[1738144513025,0.16599769,3134.4,3134.1,0.68838302]
[1738144514414,3.19036,3134.5,3134.1,0.68838302]